bitfinex/quotes_BTCUSD_20240723
["timestamp","ask_amount","ask_price","bid_price","bid_amount"]
[1721692802526,0.19326145,67691.0,67690.0,0.1688]
[1721692803174,0.23736339,67691.0,67690.0,0.1688]
[1721692803477,0.29122336,67691.0,67690.0,0.1688]
[1721692803689,0.47789582,67691.0,67690.0,0.028]
[1721692803902,0.38969194,67691.0,67690.0,0.028]
[1721692804337,0.38869194,67691.0,67690.0,0.022]
[1721692804983,0.91796704,67691.0,67690.0,0.0008969]
[1721692805188,0.2,67685.0,67681.0,0.02]
[1721692805402,0.10529842,67682.0,67681.0,0.02]
[1721692805618,0.29423708,67682.0,67681.0,0.02]
[1721692805832,0.29423708,67682.0,67681.0,0.1639]
[1721692805833,0.27218966,67682.0,67681.0,0.1639]
[1721692806107,0.10529842,67682.0,67681.0,0.02]
[1721692806560,0.38015318,67682.0,67681.0,0.02]
[1721692806773,0.38015318,67682.0,67681.0,0.034]
[1721692806774,0.46933392,67682.0,67681.0,0.034]
[1721692806989,0.46933392,67682.0,67681.0,0.00376735]
[1721692806990,0.38115318,67682.0,67681.0,0.00376735]
[1721692807413,0.38115318,67682.0,67675.0,0.000924]
[1721692807414,0.031809,67676.0,67675.0,0.000924]
[1721692807631,0.24645578,67676.0,67675.0,0.000924]
[1721692807856,0.39347598,67676.0,67675.0,0.000924]
[1721692808075,0.41550941,67676.0,67675.0,0.000924]
[1721692808529,0.30534166,67676.0,67675.0,0.000924]
[1721692809408,0.39346077,67676.0,67675.0,0.000924]
[1721692809614,0.47051495,67676.0,67675.0,0.000924]
[1721692809829,0.46463807,67676.0,67675.0,0.000924]
[1721692810045,0.3026472,67676.0,67675.0,0.000924]
[1721692810256,0.3026472,67676.0,67675.0,0.003924]
[1721692810257,0.156627,67676.0,67675.0,0.003924]
[1721692810480,0.22270716,67676.0,67675.0,0.003924]
[1721692810685,0.156627,67676.0,67675.0,0.003924]
[1721692810895,0.22270901,67676.0,67675.0,0.003924]
[1721692811143,0.156627,67676.0,67675.0,0.003924]
[1721692811367,0.29920085,67676.0,67675.0,0.003924]
[1721692811579,0.35102587,67676.0,67675.0,0.003924]
[1721692811801,0.22270008,67676.0,67675.0,0.003924]
[1721692812012,0.22270008,67676.0,67675.0,0.069024]
[1721692812013,0.15662623,67676.0,67675.0,0.069024]
[1721692812225,0.15662623,67676.0,67675.0,0.003924]
[1721692812879,0.22270008,67676.0,67675.0,0.003924]
[1721692813318,0.15662623,67676.0,67675.0,0.003924]
[1721692813524,0.40692551,67676.0,67675.0,0.003924]
[1721692813757,0.47420021,67676.0,67675.0,0.003924]
[1721692813962,0.40812636,67676.0,67675.0,0.003924]
[1721692814407,0.63783688,67676.0,67675.0,0.003924]
[1721692814619,0.63699973,67676.0,67675.0,0.003924]
[1721692815471,0.54890626,67676.0,67675.0,0.003924]
[1721692815677,0.56972694,67676.0,67675.0,0.003924]
[1721692816099,0.48163156,67676.0,67675.0,0.003924]
[1721692816315,0.56971435,67676.0,67675.0,0.003924]
[1721692816515,0.48163156,67676.0,67675.0,0.003924]
[1721692816970,0.3090539,67676.0,67675.0,0.1383731]
[1721692817189,0.48313642,67676.0,67675.0,0.1383731]
[1721692817410,0.34085462,67676.0,67675.0,0.1383731]
[1721692817650,0.40693084,67676.0,67675.0,0.1383731]
[1721692817855,0.34085462,67676.0,67675.0,0.1383731]
[1721692818706,0.33693887,67676.0,67675.0,0.1383731]
[1721692819197,0.25049907,67676.0,67675.0,0.1383731]
[1721692819641,0.20645074,67676.0,67675.0,0.1383731]
[1721692819858,0.25050046,67676.0,67675.0,0.1383731]
[1721692820292,0.29592507,67676.0,67675.0,0.0007731]
[1721692820509,0.17890987,67676.0,67675.0,0.0007731]
[1721692820719,0.15462725,67676.0,67675.0,0.0007731]
[1721692820977,0.22070647,67676.0,67675.0,0.0007731]
[1721692821217,0.22070647,67676.0,67671.0,0.0647]
[1721692821218,0.031809,67672.0,67671.0,0.0355381]
[1721692821513,0.22811667,67672.0,67671.0,0.0355381]
[1721692821982,0.27216735,67672.0,67671.0,0.0355381]
[1721692822201,0.12281825,67672.0,67671.0,0.1168381]
[1721692822412,0.031809,67672.0,67671.0,0.1168381]
[1721692822636,0.15562725,67672.0,67671.0,0.1168381]
[1721692822865,0.031809,67665.0,67664.0,0.009152]
[1721692823080,0.22811667,67665.0,67664.0,0.092252]
[1721692823301,0.22812478,67665.0,67664.0,0.009152]
[1721692823734,0.32771597,67665.0,67664.0,0.009152]
[1721692823943,0.2721892,67665.0,67664.0,0.009152]
[1721692824242,0.15464142,67665.0,67664.0,0.147752]
[1721692824502,0.15564142,67665.0,67664.0,0.14650507]
[1721692825593,0.15564142,67665.0,67664.0,0.00890507]
[1721692825594,0.20847364,67665.0,67664.0,0.00890507]
[1721692825851,0.20747364,67665.0,67664.0,0.00890507]
[1721692826107,0.20747364,67665.0,67664.0,0.14650507]
[1721692826108,0.15564142,67665.0,67664.0,0.14650507]
[1721692826341,0.15564142,67665.0,67664.0,0.16590008]
[1721692826583,0.12483242,67665.0,67664.0,0.16590008]
[1721692826842,0.12483242,67665.0,67664.0,0.14850507]
[1721692827071,0.12483242,67665.0,67664.0,0.17150507]
[1721692827335,0.002,67665.0,67664.0,0.17150507]
[1721692827575,0.001,67665.0,67664.0,0.17150507]
[1721692827803,0.032809,67665.0,67664.0,0.17150507]
[1721692828031,0.001,67665.0,67664.0,0.17150507]
[1721692828264,0.031809,67666.0,67665.0,0.137]
[1721692828502,0.1175545,67674.0,67666.0,0.0769]
[1721692828503,0.031809,67670.0,67666.0,0.0769]
[1721692828756,0.07348942,67674.0,67667.0,0.064]
[1721692828757,0.15461527,67669.0,67667.0,0.064]
[1721692828991,0.031809,67669.0,67667.0,0.064]
[1721692829715,0.07348942,67674.0,67667.0,0.064]
[1721692829716,0.15461612,67668.0,67667.0,0.063]
[1721692830431,0.15461612,67668.0,67667.0,1.393042]
[1721692831697,0.002,67669.0,67668.0,1.40532]
[1721692831910,0.001,67669.0,67668.0,1.72388]
[1721692832139,0.5734,67677.0,67676.0,1.405762]
[1721692832371,0.5734,67677.0,67676.0,1.109237]
[1721692832372,0.72799951,67677.0,67676.0,1.109237]
[1721692832597,0.72799951,67677.0,67676.0,0.813712]
[1721692832598,0.79414804,67677.0,67676.0,0.813712]
[1721692832827,0.98069925,67677.0,67676.0,0.812712]
[1721692833032,0.98069925,67677.0,67676.0,1.108237]
[1721692833250,0.87045169,67677.0,67676.0,1.108237]
[1721692833474,0.79524585,67677.0,67676.0,1.168937]
[1721692833896,0.79524489,67677.0,67676.0,1.464462]
[1721692834104,0.72899951,67677.0,67676.0,1.464462]
[1721692834784,0.72899951,67677.0,67676.0,1.463462]
[1721692835212,0.72900384,67677.0,67676.0,1.463462]
[1721692835643,0.69819501,67677.0,67676.0,1.468462]
[1721692836538,0.69819501,67677.0,67676.0,1.786987]
[1721692836539,0.102,67677.0,67676.0,1.786987]
[1721692837177,0.102,67677.0,67676.0,2.082512]
[1721692837390,0.12014214,67690.0,67689.0,1.329606]
[1721692837391,0.04416531,67690.0,67689.0,1.329606]
[1721692837632,0.47424,67691.0,67690.0,0.88186]
[1721692837633,0.00084,67691.0,67690.0,0.88186]
[1721692837844,0.00084,67691.0,67690.0,1.495788]
[1721692838769,0.00084,67691.0,67690.0,1.494788]
[1721692838991,0.00084,67691.0,67690.0,1.493788]
[1721692839208,0.00184,67691.0,67690.0,1.498788]
[1721692839627,0.00284,67691.0,67690.0,1.805252]
[1721692841338,0.00184,67691.0,67690.0,1.800252]
[1721692841778,0.00184,67691.0,67690.0,1.803252]
[1721692841986,0.00084,67691.0,67690.0,2.084716]
[1721692842199,0.00084,67691.0,67690.0,2.098716]
[1721692842200,0.00184,67691.0,67690.0,2.098716]
[1721692842410,0.00284,67691.0,67690.0,2.112716]
[1721692842596,0.00284,67691.0,67690.0,2.148716]
[1721692842597,0.00184,67691.0,67690.0,2.148716]
[1721692842853,0.00184,67691.0,67690.0,2.198716]
[1721692843055,0.00184,67691.0,67690.0,2.298716]
[1721692843266,0.00284,67691.0,67690.0,2.330907]
[1721692843907,0.00284,67691.0,67690.0,2.312716]
[1721692844521,0.00084,67691.0,67690.0,2.284716]
[1721692844953,0.031809,67709.0,67708.0,0.1441]
[1721692845161,0.031809,67709.0,67708.0,0.882565]
[1721692845367,0.031809,67709.0,67708.0,1.473337]
[1721692845578,0.031809,67709.0,67708.0,1.472337]
[1721692846243,0.032809,67709.0,67708.0,1.481337]
[1721692846673,0.032809,67709.0,67708.0,1.490337]
[1721692847529,0.031809,67709.0,67708.0,1.481337]
[1721692847977,0.032809,67709.0,67708.0,1.484337]
[1721692848178,0.032809,67709.0,67708.0,1.482337]
[1721692848390,0.032809,67709.0,67708.0,1.494337]
[1721692848602,0.033809,67709.0,67708.0,1.494337]
[1721692848811,0.031809,67709.0,67708.0,1.472337]
[1721692849016,0.031809,67709.0,67708.0,1.482337]
[1721692849447,0.031809,67709.0,67708.0,1.472337]
[1721692849889,0.032809,67709.0,67708.0,1.494337]
[1721692850521,0.03207839,67709.0,67708.0,1.494337]
[1721692850940,0.03207839,67709.0,67708.0,1.055851]
[1721692851175,0.03107839,67709.0,67708.0,1.033851]
[1721692851384,0.03107839,67709.0,67708.0,1.043851]
[1721692851607,0.03107839,67709.0,67708.0,1.053851]
[1721692852018,0.03107839,67709.0,67708.0,1.043851]
[1721692852451,0.03107839,67709.0,67708.0,1.053851]
[1721692852661,0.16347839,67709.0,67708.0,0.463079]
[1721692852884,0.16347839,67709.0,67708.0,0.443079]
[1721692853094,0.16347839,67709.0,67708.0,0.451079]
[1721692853095,0.20752975,67709.0,67708.0,0.451079]
[1721692853302,0.16347839,67709.0,67708.0,0.451079]
[1721692853506,0.20748198,67709.0,67708.0,0.451079]
[1721692853749,0.20748198,67709.0,67708.0,0.746465]
[1721692853750,0.16347839,67709.0,67708.0,0.746465]
[1721692854180,0.16347839,67709.0,67708.0,0.460079]
[1721692854382,0.16447839,67709.0,67708.0,0.452079]
[1721692854598,0.03107839,67703.0,67702.0,0.738527]
[1721692854804,0.10456781,67703.0,67702.0,0.738527]
[1721692855036,0.23596781,67703.0,67702.0,0.738527]
[1721692855885,0.23582389,67703.0,67702.0,0.738527]
[1721692856108,0.23582389,67703.0,67702.0,0.743527]
[1721692856325,0.23582389,67703.0,67702.0,0.747527]
[1721692856962,0.03093447,67703.0,67702.0,0.747527]
[1721692857175,0.03093447,67703.0,67702.0,1.118239]
[1721692857387,0.03093447,67703.0,67702.0,1.408651]
[1721692857659,0.03093447,67708.0,67703.0,0.0622]
[1721692857865,0.03093447,67708.0,67707.0,1.096065]
[1721692858076,0.03093447,67708.0,67707.0,1.391455]
[1721692858292,0.03093447,67708.0,67707.0,1.686845]
[1721692858508,0.03093447,67708.0,67707.0,1.391455]
[1721692859155,0.03193447,67708.0,67707.0,1.403455]
[1721692859811,0.03193447,67708.0,67707.0,1.417455]
[1721692860512,0.03093447,67708.0,67707.0,1.405455]
[1721692860727,0.03093447,67708.0,67707.0,1.047865]
[1721692860937,0.23193447,67708.0,67707.0,0.471085]
[1721692861150,0.35468105,67708.0,67707.0,0.471085]
[1721692861378,0.41971934,67708.0,67707.0,0.471085]
[1721692861597,0.60848467,67708.0,67707.0,0.471085]
[1721692862029,0.36053447,67708.0,67707.0,0.161695]
[1721692862250,0.36053447,67708.0,67702.0,0.295408]
[1721692862251,0.03093447,67703.0,67702.0,0.147706]
[1721692862468,0.03093447,67703.0,67702.0,0.443118]
[1721692862469,0.10442389,67703.0,67702.0,0.443118]
[1721692862681,0.10442389,67703.0,67702.0,0.73853]
[1721692862682,0.2271824,67703.0,67702.0,0.73853]
[1721692862899,0.2271824,67703.0,67702.0,1.033942]
[1721692862900,0.15369298,67703.0,67702.0,1.033942]
[1721692863342,0.35369298,67703.0,67702.0,1.033942]
[1721692864273,0.15369298,67703.0,67702.0,1.033942]
[1721692864486,0.15368874,67703.0,67702.0,1.033942]
[1721692864906,0.15368874,67703.0,67702.0,1.043942]
[1721692865126,0.15368874,67703.0,67702.0,1.039942]
[1721692865339,0.15368874,67703.0,67702.0,0.74453]
[1721692865598,0.15468874,67703.0,67702.0,0.75153]
[1721692866028,0.15468874,67703.0,67702.0,0.74553]
[1721692866547,0.15468874,67703.0,67702.0,1.043942]
[1721692866801,0.15368874,67703.0,67702.0,1.036942]
[1721692867045,0.19773082,67703.0,67702.0,1.039942]
[1721692867256,0.03093447,67703.0,67702.0,1.039942]
[1721692867473,0.15369343,67703.0,67702.0,1.039942]
[1721692869202,0.2197668,67703.0,67702.0,1.039942]
[1721692869433,0.31369022,67703.0,67702.0,1.039942]
[1721692870105,0.15369343,67703.0,67702.0,1.039942]
[1721692870332,0.03093447,67703.0,67702.0,1.039942]
[1721692870547,0.11911339,67703.0,67702.0,1.039942]
[1721692870790,0.15369354,67703.0,67702.0,1.039942]
[1721692870969,0.31483235,67703.0,67702.0,1.039942]
[1721692871145,0.21983235,67703.0,67702.0,1.039942]
[1721692871354,0.40366657,67703.0,67702.0,1.039942]
[1721692871762,0.15369354,67703.0,67702.0,1.039942]
[1721692872113,0.24187246,67703.0,67702.0,1.039942]
[1721692872381,0.28704227,67703.0,67702.0,1.039942]
[1721692872590,0.44895656,67703.0,67702.0,1.039942]
[1721692872793,0.3386363,67703.0,67702.0,1.039942]
[1721692872992,0.44895676,67703.0,67702.0,1.039942]
[1721692873414,0.33810786,67703.0,67702.0,1.039942]
[1721692876552,0.33811055,67703.0,67702.0,1.039942]
[1721692877133,0.47052486,67703.0,67702.0,1.039942]
[1721692877338,0.6958363,67703.0,67702.0,1.039942]
[1721692877542,0.69583616,67703.0,67702.0,1.039942]
[1721692877746,0.56322598,67703.0,67702.0,1.039942]
[1721692878148,0.69583736,67703.0,67702.0,1.039942]
[1721692878366,0.53229151,67703.0,67702.0,1.039942]
[1721692878787,0.56322598,67703.0,67702.0,1.039942]
[1721692879248,0.56322598,67703.0,67702.0,1.040866]
[1721692879503,0.17766015,67703.0,67702.0,1.040866]
[1721692879977,0.17766015,67703.0,67702.0,0.745454]
[1721692879978,0.1776612,67703.0,67702.0,0.745454]
[1721692880433,0.56236584,67703.0,67702.0,0.745454]
[1721692881400,0.53143137,67703.0,67702.0,0.006924]
[1721692881838,0.53143137,67703.0,67702.0,0.00022076]
[1721692881839,0.7031271,67703.0,67702.0,0.00022076]
[1721692882080,1.04637103,67703.0,67702.0,1.284e-05]
[1721692882319,0.99637103,67703.0,67702.0,1.284e-05]
[1721692882541,1.04313893,67703.0,67702.0,1.284e-05]
[1721692882977,0.69847593,67703.0,67702.0,1.284e-05]
[1721692883180,0.54908689,67703.0,67702.0,1.284e-05]
[1721692883636,0.60189003,67703.0,67702.0,1.284e-05]
[1721692884478,0.55008689,67703.0,67702.0,1.284e-05]
[1721692885327,0.05589955,67703.0,67702.0,1.284e-05]
[1721692885533,0.33921509,67703.0,67702.0,1.284e-05]
[1721692885784,0.56497874,67703.0,67702.0,1.284e-05]
[1721692885982,0.56397874,67703.0,67702.0,1.284e-05]
[1721692886397,0.71435046,67703.0,67702.0,1.284e-05]
[1721692886802,0.56397874,67703.0,67702.0,1.284e-05]
[1721692887221,0.56397874,67703.0,67702.0,0.00201284]
[1721692887429,0.71335046,67703.0,67702.0,0.00201284]
[1721692887648,0.56397874,67703.0,67702.0,0.00201284]
[1721692888325,0.56397874,67703.0,67702.0,0.00301284]
[1721692890913,0.56397874,67703.0,67702.0,0.01781412]
[1721692891141,0.31509001,67703.0,67702.0,0.14341284]
[1721692891354,0.21413027,67703.0,67702.0,0.16641284]
[1721692891567,0.19199521,67703.0,67702.0,0.16641284]
[1721692891797,0.00084,67703.0,67702.0,0.18205412]
[1721692892243,0.00184,67703.0,67702.0,0.18905412]
[1721692892657,0.00084,67703.0,67702.0,0.18205412]
[1721692892865,0.04509769,67703.0,67702.0,0.16541284]
[1721692893070,0.04609769,67703.0,67702.0,0.17741284]
[1721692893275,0.04709769,67703.0,67702.0,0.18541284]
[1721692893698,0.04709769,67703.0,67702.0,0.15441284]
[1721692893699,0.03277447,67703.0,67702.0,0.15441284]
[1721692893932,0.1393564,67703.0,67702.0,0.16841284]
[1721692894148,0.16187447,67703.0,67702.0,0.02801284]
[1721692894358,0.4078472,67703.0,67702.0,0.02801284]
[1721692894572,0.95404311,67703.0,67702.0,0.01847836]
[1721692894785,0.03093447,67681.0,67680.0,0.0632]
[1721692896295,0.03093447,67681.0,67679.0,0.0825]
[1721692896296,0.03093447,67670.0,67669.0,0.00880372]
[1721692896509,0.03093447,67670.0,67664.0,0.00790507]
[1721692896511,0.09734806,67670.0,67664.0,0.00790507]
[1721692896709,0.04427599,67667.0,67665.0,0.1393]
[1721692896932,0.03093447,67673.0,67665.0,0.1393]
[1721692897137,0.04427599,67668.0,67666.0,0.01563571]
[1721692897344,0.04427599,67670.0,67666.0,0.01563571]
[1721692897589,0.04427599,67670.0,67665.0,0.1393]
[1721692897802,0.03093447,67668.0,67666.0,0.023]
[1721692898015,0.001,67667.0,67666.0,0.023]
[1721692898232,0.03093447,67669.0,67666.0,0.023]
[1721692898442,0.04427599,67668.0,67666.0,0.023]
[1721692898651,0.04427599,67668.0,67666.0,0.026]
[1721692898888,0.04427599,67668.0,67666.0,0.003]
[1721692898889,0.03093447,67667.0,67666.0,0.003]
[1721692899847,0.09734846,67667.0,67665.0,0.1393]
[1721692900097,0.07517764,67666.0,67665.0,0.1393]
[1721692900350,0.03093447,67666.0,67665.0,0.1393]
[1721692901255,0.03193447,67666.0,67665.0,0.1393]
[1721692901689,0.001,67666.0,67665.0,0.1393]
[1721692902105,0.002,67666.0,67665.0,0.1393]
[1721692902963,0.03293447,67666.0,67665.0,0.1393]
[1721692903172,0.03293447,67666.0,67665.0,0.0625]
[1721692903391,0.03293447,67666.0,67664.0,0.00790507]
[1721692903392,0.03093447,67665.0,67664.0,0.00790507]
[1721692903593,0.07513026,67665.0,67664.0,0.00790507]
[1721692903809,0.03093447,67665.0,67664.0,0.00790507]
[1721692904762,0.23193447,67665.0,67664.0,0.01190507]
[1721692904976,0.27612954,67665.0,67664.0,0.01190507]
[1721692905184,0.23193447,67665.0,67664.0,0.01190507]
[1721692905394,0.23193447,67665.0,67664.0,0.01290507]
[1721692905395,0.34341441,67665.0,67664.0,0.01290507]
[1721692905604,0.23293447,67665.0,67664.0,0.01290507]
[1721692905805,0.29821741,67665.0,67664.0,1.04642807]
[1721692906033,0.201,67665.0,67664.0,1.04642807]
[1721692906242,0.29737826,67665.0,67664.0,1.04242807]
[1721692906460,0.29826576,67665.0,67664.0,1.04242807]
[1721692906920,0.29926576,67665.0,67664.0,1.04642807]
[1721692907321,0.34907788,67665.0,67664.0,0.15969407]
[1721692907642,0.4719122,67665.0,67664.0,0.15969407]
[1721692907843,0.47191172,67665.0,67664.0,0.45527207]
[1721692908053,0.47191172,67665.0,67664.0,0.45127207]
[1721692908054,0.42110121,67665.0,67664.0,0.45127207]
[1721692908249,0.42010121,67665.0,67664.0,0.45127207]
[1721692908472,0.42010121,67665.0,67664.0,0.45527207]
[1721692908679,0.42010121,67665.0,67664.0,0.16369407]
[1721692908876,0.47536836,67665.0,67664.0,0.45927207]
[1721692909084,0.47536836,67665.0,67664.0,0.45921709]
[1721692909288,0.58572261,67665.0,67664.0,0.45921709]
[1721692909504,0.47536836,67665.0,67664.0,0.45921709]
[1721692909940,0.46985257,67665.0,67664.0,0.45921709]
[1721692910145,0.46985257,67665.0,67664.0,0.01585009]
[1721692910348,0.41458542,67665.0,67664.0,0.16363909]
[1721692910967,0.29174688,67665.0,67664.0,0.16363909]
[1721692911169,0.41458394,67665.0,67664.0,0.16363909]
[1721692911379,0.52490439,67665.0,67664.0,0.01585009]
[1721692911604,0.52490439,67665.0,67662.0,0.00772289]
[1721692911605,0.18093447,67663.0,67662.0,0.00772289]
[1721692911835,0.18093447,67663.0,67660.0,0.009152]
[1721692911836,0.33663447,67661.0,67660.0,0.009152]
[1721692912054,4.29469129,67661.0,67660.0,0.009152]
[1721692912277,4.44165394,67661.0,67660.0,0.009152]
[1721692912506,4.44165394,67661.0,67648.0,0.147823]
[1721692912507,0.43093447,67652.0,67641.0,0.002]
[1721692912756,1.05442389,67652.0,67641.0,0.002]
[1721692912981,1.74729339,67652.0,67651.0,0.00114732]
[1721692913196,1.74541344,67652.0,67651.0,0.00114732]
[1721692914294,2.22377363,67652.0,67651.0,0.00114732]
[1721692914519,1.74208042,67652.0,67651.0,0.00114732]
[1721692915260,1.80896095,67652.0,67651.0,0.00091947]
[1721692915474,1.75608042,67652.0,67651.0,0.00091947]
[1721692915677,1.77178193,67652.0,67651.0,0.00091947]
[1721692915902,1.77318446,67652.0,67651.0,0.00091947]
[1721692916122,1.51060714,67652.0,67651.0,0.00091947]
[1721692916337,1.57492205,67652.0,67651.0,0.00091947]
[1721692916550,1.80367152,67652.0,67651.0,0.00091947]
[1721692916763,1.72273705,67652.0,67651.0,0.00091947]
[1721692916974,2.16488927,67652.0,67651.0,0.00091947]
[1721692917194,2.29678647,67652.0,67651.0,0.00091947]
[1721692917400,2.59232835,67652.0,67651.0,0.00091947]
[1721692917614,2.46051927,67652.0,67651.0,0.00091947]
[1721692918462,2.46051927,67652.0,67641.0,0.002]
[1721692918463,1.08093447,67642.0,67641.0,0.002]
[1721692918671,5.97870355,67642.0,67641.0,0.002]
[1721692918915,5.9268365,67642.0,67641.0,0.002]
[1721692919131,5.97870142,67642.0,67641.0,0.002]
[1721692919337,6.09028205,67642.0,67641.0,0.002]
[1721692919541,6.22530863,67642.0,67641.0,0.002]
[1721692919761,0.33663447,67641.0,67640.0,0.00766127]
[1721692919977,0.61141104,67641.0,67640.0,0.00766127]
[1721692920197,0.7229822,67641.0,67640.0,0.00766127]
[1721692921091,0.64265896,67641.0,67640.0,0.00766127]
[1721692921317,1.66125731,67641.0,67640.0,0.00766127]
[1721692921602,1.55413447,67635.0,67634.0,0.009152]
[1721692921812,2.01297459,67635.0,67634.0,0.009152]
[1721692922037,1.94500014,67635.0,67634.0,0.009152]
[1721692922246,1.96232855,67635.0,67634.0,0.009152]
[1721692922454,2.07296134,67635.0,67634.0,0.009152]
[1721692923905,1.80154005,67635.0,67634.0,0.009152]
[1721692924123,2.08773476,67635.0,67634.0,0.009152]
[1721692924334,2.0278186,67635.0,67634.0,0.009152]
[1721692924764,1.0873186,67635.0,67634.0,0.009152]
[1721692924976,0.87324826,67635.0,67634.0,0.009152]
[1721692925191,0.36785884,67635.0,67634.0,0.157006]
[1721692925450,0.36785884,67635.0,67634.0,0.4769656]
[1721692925451,0.16785884,67635.0,67634.0,0.4769656]
[1721692925662,0.06732127,67642.0,67634.0,0.4769656]
[1721692925663,0.03093447,67637.0,67636.0,0.44355]
[1721692925879,0.03093447,67637.0,67636.0,0.73925]
[1721692926297,0.03093447,67637.0,67636.0,1.03495]
[1721692927205,0.03093447,67637.0,67636.0,1.02095]
[1721692928216,0.03193447,67637.0,67636.0,1.02095]
[1721692928455,0.03093447,67637.0,67636.0,1.02095]
[1721692928948,0.03193447,67637.0,67636.0,1.02095]
[1721692929901,0.15480753,67637.0,67636.0,1.02095]
[1721692930159,0.27348942,67645.0,67634.0,0.151152]
[1721692930160,0.03093447,67635.0,67634.0,0.299005]
[1721692930402,0.22938942,67645.0,67635.0,0.443556]
[1721692930403,0.03093447,67636.0,67635.0,0.443556]
[1721692930621,0.03093447,67644.0,67643.0,0.295669]
[1721692930848,0.05,67650.0,67643.0,0.295669]
[1721692930849,0.03093447,67646.0,67643.0,1.179441]
[1721692931074,0.03093447,67650.0,67643.0,0.1446]
[1721692931307,0.49093655,67664.0,67659.0,0.443398]
[1721692931308,0.4734,67660.0,67659.0,0.443398]
[1721692931530,0.44093655,67664.0,67659.0,0.443398]
[1721692931531,0.47187102,67664.0,67663.0,0.738955]
[1721692931758,0.47187102,67664.0,67663.0,0.443373]
[1721692931759,0.35377249,67664.0,67663.0,0.443373]
[1721692932399,0.03093447,67660.0,67659.0,0.211099]
[1721692932637,0.03093447,67653.0,67652.0,0.0616]
[1721692932852,0.22726607,67653.0,67652.0,0.147815]
[1721692933099,0.03093447,67651.0,67650.0,0.443457]
[1721692933315,0.03093447,67651.0,67650.0,0.739096]
[1721692933530,0.15377665,67651.0,67650.0,0.443457]
[1721692933745,0.15377665,67651.0,67650.0,0.739096]
[1721692933953,0.15377665,67651.0,67650.0,1.034735]
[1721692934435,0.15377665,67651.0,67650.0,1.330374]
[1721692934654,0.15377665,67651.0,67650.0,1.181135]
[1721692934655,0.12284218,67651.0,67650.0,1.181135]
[1721692934864,0.15377665,67651.0,67650.0,1.181135]
[1721692935070,0.15377665,67651.0,67650.0,1.176135]
[1721692935525,0.12283801,67651.0,67650.0,1.476774]
[1721692935765,0.2,67659.0,67650.0,1.476774]
[1721692935766,0.2,67659.0,67654.0,0.295621]
[1721692935997,0.2,67659.0,67658.0,0.73901]
[1721692935998,0.23093447,67659.0,67658.0,0.73901]
[1721692936215,0.23093447,67659.0,67658.0,1.034614]
[1721692936216,0.35376499,67659.0,67658.0,1.034614]
[1721692937106,0.35376499,67659.0,67658.0,1.033614]
[1721692937323,0.35376499,67659.0,67650.0,0.1484]
[1721692937324,0.03093447,67651.0,67650.0,0.296219]
[1721692937536,0.22725441,67651.0,67650.0,0.584858]
[1721692937947,0.22725441,67651.0,67650.0,0.880497]
[1721692938595,0.22827675,67651.0,67650.0,0.887497]
[1721692939012,0.22827762,67651.0,67650.0,0.887497]
[1721692939667,0.22827762,67651.0,67650.0,1.183136]
[1721692940093,0.1537882,67651.0,67650.0,0.880497]
[1721692940513,0.1537882,67651.0,67650.0,1.181136]
[1721692941444,0.1537822,67651.0,67650.0,1.181136]
[1721692942112,0.1537822,67651.0,67650.0,0.885497]
[1721692944537,0.45378941,67651.0,67650.0,0.005]
[1721692944813,1.1197032,67651.0,67650.0,0.005]
[1721692945066,1.2354615,67651.0,67650.0,0.005]
[1721692945308,1.2354615,67651.0,67650.0,0.00380062]
[1721692945544,1.38242415,67651.0,67650.0,0.00472462]
[1721692946269,1.19192415,67651.0,67650.0,0.00472462]
[1721692946752,1.19192415,67651.0,67650.0,0.000924]
[1721692946999,1.19892415,67651.0,67650.0,0.001924]
[1721692947525,1.04528899,67651.0,67650.0,0.000924]
[1721692947815,1.25579688,67651.0,67650.0,0.001924]
[1721692948339,1.24179688,67651.0,67650.0,0.000924]
[1721692948589,1.52101911,67651.0,67650.0,0.001924]
[1721692948793,1.6319624,67651.0,67650.0,0.001924]
[1721692949293,1.49966133,67651.0,67650.0,0.001924]
[1721692950330,1.36443861,67651.0,67650.0,0.001924]
[1721692950612,1.50037512,67651.0,67650.0,0.001924]
[1721692950864,1.50003435,67651.0,67650.0,0.001924]
[1721692953346,1.07174539,67651.0,67650.0,0.00148196]
[1721692953583,1.49730365,67651.0,67650.0,0.00148196]
[1721692954064,1.64629982,67651.0,67650.0,0.00148196]
[1721692954546,1.49730365,67651.0,67650.0,0.00148196]
[1721692955316,1.49730365,67651.0,67650.0,0.00086275]
[1721692956632,1.49422348,67651.0,67650.0,0.00086275]
[1721692957878,1.29646083,67651.0,67650.0,0.00086275]
[1721692958381,1.09646083,67651.0,67650.0,0.00086275]
[1721692958642,1.29646083,67651.0,67650.0,0.00086275]
[1721692959398,1.2992945,67651.0,67650.0,0.00086275]
[1721692959661,1.31475165,67651.0,67650.0,0.00086275]
[1721692960112,1.4617143,67651.0,67650.0,0.00086275]
[1721692961387,1.4617143,67651.0,67650.0,0.00065922]
[1721692962610,1.46241639,67651.0,67650.0,0.00065922]
[1721692962897,1.03640254,67651.0,67650.0,0.00065922]
[1721692963135,1.46247248,67651.0,67650.0,0.00065922]
[1721692963368,1.26247248,67651.0,67650.0,0.00065922]
[1721692963610,1.31550983,67651.0,67650.0,0.00065922]
[1721692963863,1.01550983,67651.0,67650.0,0.00065922]
[1721692964135,1.26550983,67651.0,67650.0,0.00065922]
[1721692965126,1.31550983,67651.0,67650.0,0.00065922]
[1721692965385,1.00960983,67651.0,67650.0,0.50721722]
[1721692965634,1.00960983,67651.0,67650.0,0.80285622]
[1721692965635,0.75845032,67651.0,67650.0,0.80285622]
[1721692965901,0.77168183,67651.0,67650.0,0.210919]
[1721692966144,0.78568183,67651.0,67650.0,0.506558]
[1721692966631,0.77168183,67651.0,67650.0,0.506558]
[1721692966869,0.87168183,67651.0,67650.0,0.506558]
[1721692967087,0.88568183,67651.0,67650.0,0.506558]
[1721692967295,0.85908946,67651.0,67650.0,0.506558]
[1721692967504,0.84508946,67651.0,67650.0,0.506558]
[1721692967965,0.56953989,67651.0,67650.0,0.506558]
[1721692968178,0.79646982,67651.0,67650.0,0.506558]
[1721692968389,0.59646982,67651.0,67650.0,0.802197]
[1721692968609,0.59646982,67651.0,67650.0,1.173936]
[1721692968610,0.57195374,67651.0,67650.0,1.173936]
[1721692968848,0.41619749,67651.0,67650.0,1.173936]